Cogmind - Beta 17.1 @@@ ROGUE MODE // 2026.09.23 @ 18:00:57 Player: the Result: Destroyed by B-75 Beast with Heavy Machine Gun Performance ------------- Evolutions (4) 2000 Regions Visited (7) 1400 Robots Destroyed (118) 590 Value Destroyed (4216) 4216 Prototype IDs (20) 400 Alien Tech Used (0) 0 Bonus (2031) 2031 TOTAL SCORE: 10637 Bonus ------- High Alert Combat Kills 451 Follower Combat Kills 780 Registered with UFD 300 Met Optimus in HQ 500 Cogmind --------- Core Integrity 0/850 Matter 300/300 Energy 298/310 System Corruption 27% Temperature Warm (129) Movement Walking (114) Location -6/Extension Parts ------- > --- POWER (1) -------- Cooled Deuterium Engine > --- PROPULSION (5) --- Carbon-fiber Leg Carbon-fiber Leg Flexi-carbon Leg Flexi-carbon Leg Armored Leg > --- UTILITY (7+1) ---- High-capacity Storage Unit Enhanced Optical Array Advanced Sensor Array Advanced Signal Interpreter Advanced Melee Analysis Suite Improved Heavy Armor Plating Rainbow Chip (+) > --- WEAPON (2) ------- Great Maul Power Sword > --- INVENTORY (20) --- Cold Fusion Reactor Light Antimatter Reactor Large Storage Unit Advanced Terrain Scanner Microactuators Transmission Jammer Improved Heavy Armor Plating A0-MCA's Component Scanner Gamma Bomb Array Long-range Missile Launcher CPS Tube (2) Power Sword Power Sword Heavy Pick Heavy Pick Heavy Pick Peak State ------------ > --- POWER ------------ Light Fission Core Light Antimatter Reactor > --- PROPULSION ------- Flexi-carbon Leg Flexi-carbon Leg Flexi-carbon Leg Armored Leg Overtuned Flexi-carbon Leg Overtuned Flexi-carbon Leg > --- UTILITY ---------- Scrap Suit Advanced Heat Sink Advanced Heat Sink Coolant Injector Large Storage Unit Improved Medium Armor Plating Rainbow Chip > --- WEAPON ----------- Overtuned Beamcaster Overtuned Beamcaster Great Axe > --- INVENTORY -------- Neutrino Core Neutrino Core Armored Leg Armored Leg Advanced Terrain Scan Processor Seismic Detector Seismic Detector Advanced Melee Analysis Suite A0-MCA's Component Scanner Drone Bay Overtuned Beamcaster Long-range Missile Launcher CPS Tube Great Maul [Rating: 106] Favorites ----------- Power Ion Engine Engine Ion Engine Power Core Neutrino Core Reactor Cold Fusion Reactor Propulsion Light Treads Treads Light Treads Leg Flexi-carbon Leg Wheel Compact Wheel Hover Unit Cooled Aerolev Unit Flight Unit Flight Unit Utility Large Storage Unit Device Seismic Detector Storage Large Storage Unit Processor Advanced Melee Analysis Suite Protection Improved Heavy Armor Plating Weapon Assault Rifle Energy Gun Overtuned Pulse Rifle Energy Cannon Subdweller Beam Cannon Ballistic Gun Assault Rifle Ballistic Cannon Mini Assault Cannon Launcher Grenade Launcher Special Weapon Mining Laser Impact Weapon Great Maul Slashing Weapon Great Axe Piercing Weapon Heavy Pick Build | -11 -10 -10 -9 -6 -6 -6 -6 ------- Run | Yrd Mat Sub Scr Fac Was Fac Ext Slots Evolved 8 | . . . . 8 . . . Power . | . . . . . . . . Propulsion 3 | . . . . 3 . . . Utility 5 | . . . . 5 . . . Weapon . | . . . . . . . . Parts Attached 127 | 7 6 14 16 42 1 39 2 Power 16 | 1 . 1 4 5 . 5 . Engine 8 | 1 . 1 3 2 . 1 . Core 5 | . . . 1 2 . 2 . Reactor 3 | . . . . 1 . 2 . Propulsion 38 | 2 . 3 7 11 . 15 . Treads 4 | 2 . 2 . . . . . Leg 27 | . . . 2 10 . 15 . Wheel 2 | . . 1 1 . . . . Hover 1 | . . . . 1 . . . Flight 4 | . . . 4 . . . . Utility 36 | 2 3 1 1 17 1 11 . Device 19 | 1 . . 1 10 1 6 . Storage 5 | 1 2 . . 1 . 1 . Processor 7 | . . . . 4 . 3 . Hackware . | . . . . . . . . Protection 5 | . 1 1 . 2 . 1 . Artifact . | . . . . . . . . Weapon 37 | 2 3 9 4 9 . 8 2 Energy Gun 9 | 1 1 2 2 3 . . . Energy Cannon 1 | . . 1 . . . . . Ballistic Gun 7 | 1 1 4 1 . . . . Ballistic Cannon 1 | . . . . 1 . . . Launcher 2 | . . 2 . . . . . Special Weapon 4 | . 1 . 1 2 . . . Impact Weapon 4 | . . . . . . 3 1 Slashing Weapon 7 | . . . . 3 . 3 1 Piercing Weapon 2 | . . . . . . 2 . Special Melee Weapon . | . . . . . . . . Unidentified Prototypes 5 | . . . . 3 . 2 . Corrupted Parts 1 | . . . . . . 1 . System Corruption 8 | . . . . . . 8 . Parts Lost 21 | . . 3 . 7 . 11 . Power 5 | . . 1 . 2 . 2 . Propulsion 11 | . . 2 . 4 . 5 . Utility 4 | . . . . 1 . 3 . Weapon 1 | . . . . . . 1 . Highest Loss Streak 6 | . . 2 . 3 . 6 . To Critical Strikes . | . . . . . . . . Average Backups 12 | 3 11 13 11 13 10 13 16 Power 1 | 1 1 1 . 1 1 1 2 Propulsion 1 | 1 2 2 1 1 1 . . Utility 3 | . 3 2 2 5 2 2 6 Weapon 5 | . 4 7 4 3 4 8 7 Tool/Special . | . . . . . . . . Unused Backups 34 | . 2 3 10 1 . 8 10 Power 2 | . . . 1 . . . 1 Propulsion 3 | . 1 . 1 . . 1 . Utility 8 | . 1 1 3 1 . . 2 Weapon 19 | . . 2 4 . . 7 6 Tool/Special 2 | . . . 1 . . . 1 Average Slot Usage (%) 94 | . 99 99 91 89 62 94 93 Engine 8 | . 14 13 10 1 . 1 6 Core 1 | . . . 3 3 . 1 . Treads 12 | . 28 26 12 . . . . Leg 12 | . . . 5 29 11 27 31 Wheel 1 | . . 1 6 . . . . Device 12 | . 13 12 12 22 3 4 6 Storage 10 | . 14 14 12 5 5 5 6 Processor 7 | . . . . 6 23 27 25 Protection 1 | . . 1 1 1 . 3 6 Energy Gun 5 | . . 5 9 8 . . . Energy Cannon 2 | . . 2 6 . . . . Ballistic Gun 9 | . 26 16 7 . . . . Impact Weapon 1 | . . . . . . 4 6 Slashing Weapon 2 | . . . . 6 17 7 6 Peak Build Rating 106 | 6 8 12 27 106 54 94 86 Average Rating 40 | 3 7 9 15 89 53 85 85 On Entrance 30 | . 6 8 12 27 52 54 86 Avg Prop Armor Cover (%) 8 | . . 12 9 1 . . . Naked Turns 37 | . . . 37 . . . . Heaviest Build 75 | 13 30 36 37 67 30 74 75 Greatest Support 125 | 40 40 40 40 125 32 100 86 Greatest Overweight (x) 2 | . . 1 2 . . . . Average Overweight (x) . | . . . . . . . . Largest Inventory Capacity 20 | 8 15 15 15 15 15 20 20 Average Capacity 14 | 6 13 15 13 15 15 15 20 Most Carried 18 | 5 15 15 15 15 11 17 18 Average Carried 12 | 4 11 13 11 13 10 13 17 Final Capacity 20 | 8 15 15 15 15 15 20 20 Final Carried 17 | 5 15 15 15 10 10 17 17 Scrap Suit Usage (%) 9 | . . . . 59 . . . Parts Cannibalized 6 | . . . . 6 . . . Class Distribution -------------------- 36% | Mutant 26% | Scavenger-Mutant 13% | Gladiator 9% | Scavenger-Gladiator 5% | Scrapper 4% | Scavenger-Scrapper Dominant Class ---------------- Mutant | -10/Materials Scavenger-Mutant | -10/Subcaves Mutant | -9/Scraptown Scrapper | -6/Factory Gladiator | -6/Waste Gladiator | -6/Factory Scavenger-Gladiator | -6/Extension Resources | -11 -10 -10 -9 -6 -6 -6 -6 ----------- Run | Yrd Mat Sub Scr Fac Was Fac Ext Matter Collected 3474 | 261 309 420 216 1392 . 726 150 Remotely . | . . . . . . . . Salvage Created 7310 | 128 298 415 . 2968 . 3277 224 Parts 247 | 18 19 28 . 91 . 86 5 Haulers Intercepted 10 | . 2 . . 2 . 6 . Recyclers Shooed 14 | 1 3 . . 9 . 1 . Parts Field Recycled . | . . . . . . . . Retrieved Matter . | . . . . . . . . Parts Self-Destructed 4 | . . 4 . . . . . Prevented . | . . . . . . . . Parts Restored . | . . . . . . . . Kills | -11 -10 -10 -9 -6 -6 -6 -6 ------- Run | Yrd Mat Sub Scr Fac Was Fac Ext Combat Hostiles Destroyed 73 | . 7 11 . 23 . 28 4 Melee 28 | . . . . 1 . 23 4 Guns 34 | . 7 6 . 21 . . . AOE 5 | . . 5 . . . . . Classes Destroyed 15 | 2 3 1 . 9 . . . Worker 7 | . . . . 7 . . . Builder 2 | . . . . 2 . . . Tunneler 5 | 4 . . . . . 1 . Hauler 10 | . 2 . . 2 . 6 . Recycler 17 | 1 . . . 8 . 8 . Watcher 4 | . . . . 2 . 2 . Swarmer 3 | . 3 . . . . . . Grunt 32 | . 4 . . 8 . 17 3 Brawler 2 | . . . . 1 . 1 . Duelist 1 | . . . . 1 . . . Protector 1 | . . . . 1 . . . Sentry 7 | . . . . 4 . 2 1 Hunter 10 | . . . . 5 . 5 . Programmer 6 | . . . . 3 . 3 . Subdweller 11 | . . 11 . . . . . Best Kill Streak 10 | 5 3 3 . 10 . 4 2 Combat Bots Only 4 | . 3 3 . 4 . 4 2 Max Kills in Single Turn 2 | 1 1 2 . 2 . 1 1 Gunslinging . | . . . . . . . . Exploded 2 | . . 2 . . . . . Melee 1 | . . . . 1 . 1 1 Uniques/NPCs Destroyed . | . . . . . . . . Combat | -11 -10 -10 -9 -6 -6 -6 -6 -------- Run | Yrd Mat Sub Scr Fac Was Fac Ext Hostile Shots Fired 650 | . 26 46 . 282 . 210 86 Missed 200 | . 9 12 . 103 . 49 27 Hits 450 | . 17 34 . 179 . 161 59 Melee 3 | . . . . 2 . 1 . Projectile 447 | . 17 34 . 177 . 160 59 Critical Strikes 13 | . . 1 . 5 . 7 . Actively Blocked 1 | . . . . . . 1 . Damage Taken 6637 | . 157 747 . 2719 . 2455 559 Core 1067 | . 34 176 . 357 . 422 78 Absorbed by Shields . | . . . . . . . . Redirected to Shielding 121 | . . . . . . 121 . Regen/Repaired (Parts) 38 | . . . . 38 . . . Core Remaining (%) 58 | 100 . . 16 . . . . Volleys Fired 207 | 21 29 46 . 111 . . . Largest 2 | 1 2 2 . 2 . . . Hottest 200 | 20 100 100 . 200 . . . Shots Fired 379 | 21 54 85 . 219 . . . Gun 360 | 21 51 72 . 216 . . . Cannon . | . . . . . . . . Launcher 11 | . . 11 . . . . . Special 8 | . 3 2 . 3 . . . Kinetic 101 | 21 50 30 . . . . . Thermal 263 | . 3 44 . 216 . . . Explosive 11 | . . 11 . . . . . Electromagnetic 1 | . 1 . . . . . . Robot Hit Streak 20 | 4 14 20 . 16 . . . Robot Miss Streak 3 | 2 2 1 . 3 . . . Penetration Max . | . . . . . . . . Secondary Targets 6 | . 2 1 . 3 . . . Max Gunslinging Chain 1 | . 1 1 . 1 . . . Shots Hit Robots 421 | 11 33 61 . 167 . 136 13 Core Hits 181 | 5 18 26 . 82 . 47 3 Critical Kills 2 | . 1 . . . . 1 . Critical Parts Destroyed 10 | . . . . . . 10 . Critical Strikes 43 | . 1 1 . 16 . 24 1 Burn 16 | . . . . 16 . . . Destroy 2 | . 1 1 . . . . . Smash 11 | . . . . . . 11 . Sever 7 | . . . . . . 6 1 Impale 7 | . . . . . . 7 . Melee Attacks 252 | . . . . 37 8 193 14 Impact 51 | . . . . . . 45 6 Slashing 107 | . . . . 37 8 54 8 Piercing 94 | . . . . . . 94 . Sneak Attacks 35 | . . . . 10 . 22 3 Combat Hostiles 2 | . . . . . . 2 . Follow-up Attacks 37 | . . . . . . 35 2 Damage Inflicted 14076 | 139 418 1135 . 5243 . 6418 723 Guns 5293 | 139 405 552 . 4197 . . . Cannons . | . . . . . . . . Explosions 583 | . . 583 . . . . . Melee 8187 | . . . . 1046 . 6418 723 Ramming 13 | . 13 . . . . . . Kinetic 735 | 139 392 204 . . . . . Thermal 4545 | . . 348 . 4197 . . . Explosive 583 | . . 583 . . . . . Electromagnetic 13 | . 13 . . . . . . Impact 2394 | . . . . . . 2083 311 Slashing 2774 | . . . . 1046 . 1316 412 Piercing 3019 | . . . . . . 3019 . Highest Corruption 27 | . . . . 2 16 27 27 Average Corruption 16 | . . . . 1 7 21 27 Corruption Purged 2 | . . . . 2 . . . Corruption Blocked . | . . . . . . . . Effects 138 | . . . . 15 4 97 22 Message Errors 29 | . . . . 4 . 19 6 Matter Fused 27 | . . . . 2 . 23 2 Heat Flow Errors 22 | . . . . 2 . 12 8 Energy Discharges 21 | . . . . 1 1 14 5 Parts Rejected 3 | . . . . . 1 2 . Parts Fused 2 | . . . . . . 2 . Data Loss (minor) 17 | . . . . 5 1 10 1 Data Loss (major) 9 | . . . . 1 1 7 . Alerts 5 | . . . . . . 5 . Misdirections 3 | . . . . . . 3 . Overload Shots . | . . . . . . . . Overflow Damage 1472 | . . . . 256 . 1192 24 Projectiles . | . . . . . . . . Explosions . | . . . . . . . . Melee 1472 | . . . . 256 . 1192 24 Knockbacks 12 | . . . . . . 10 2 Impact 12 | . . . . . . 10 2 Kinetic . | . . . . . . . . Secondary . | . . . . . . . . Self-Inflicted Damage . | . . . . . . . . Shots . | . . . . . . . . Rammed 7 | . 7 . . . . . . Targets Rammed 7 | . 7 . . . . . . Kicked . | . . . . . . . . Crushed . | . . . . . . . . Highest Temperature 381 | . 20 . . 381 . 267 257 Average Temperature 112 | . 10 . . 120 . 109 90 Received Heat Transfer 1530 | . 48 117 . 522 . 672 171 Siege Activations . | . . . . . . . . Martial Activations . | . . . . . . . . Shielding Activations . | . . . . . . . . Robots Disrupted . | . . . . . . . . Combat Hostiles . | . . . . . . . . Robots Corrupted 12 | . . . . . . 12 . Combat Hostiles 5 | . . . . . . 5 . Parts Fried 18 | . . . . . . 18 . Impact Corruptions 29 | . . . . . . 28 1 Robots Melted 4 | . . . . 4 . . . Combat Hostiles 1 | . . . . 1 . . . Parts Melted 43 | . . 3 . 38 . . 2 Heat Transferred 9904 | . . 975 . 8929 . . . Parts Sabotaged 5 | . . . . 5 . . . Parts Stolen . | . . . . . . . . Parts Stripped . | . . . . . . . . Power Chain Reactions . | . . . . . . . . Alert | -11 -10 -10 -9 -6 -6 -6 -6 ------- Run | Yrd Mat Sub Scr Fac Was Fac Ext Maximum Alert Level 3 | . . . . 3 1 2 1 Low Security (%) 57 | 100 100 . . 38 . 51 19 Level 1 15 | . . . . 4 100 19 80 Level 2 14 | . . . . 17 . 29 . Level 3 11 | . . . . 39 . . . Level 4 . | . . . . . . . . Level 5 . | . . . . . . . . High Security . | . . . . . . . . Max Security . | . . . . . . . . Peak Influence 889 | 10 70 . . 889 284 502 359 Initial 284 | . . . . . 284 145 233 Average 244 | 1 9 . . 452 243 255 243 Influence Increases 3195 | 25 255 . . 1420 4 1075 416 Destroy 0b10 Robot/C 1620 | . 140 . . 680 . 560 240 Destroy 0b10 Robot/NC 260 | 25 10 . . 130 . 85 10 Destroy Leader 368 | . 34 . . 178 . 144 12 Allied During Kill 248 | . . . . 118 . . 130 Successful Hack 57 | . 8 . . . . 35 14 Select Force Hacks 60 | . 60 . . . . . . Disable Machine 30 | . . . . 15 . 15 . Anti-Garrison Action 150 | . . . . 150 . . . Destroy Structure 87 | . 3 . . 44 4 26 10 Partial Spotted 15 | . . . . . . 15 . Lose Combat Pursuer 300 | . . . . 105 . 195 . Influence Decreases 2944 | 25 231 24 . 606 610 807 641 Entered New Map 848 | . . 12 . . 530 63 243 Time Decay 1606 | 25 231 12 . 406 60 634 238 Lost Part 180 | . . . . 70 . 110 . Lost Ally 310 | . . . . 130 20 . 160 Squads Dispatched 34 | . 3 . . 18 . 11 2 Investigation 13 | . 3 . . 5 . 4 1 Extermination 7 | . . . . 3 . 4 . Reinforcement 10 | . . . . 6 . 3 1 Assault 3 | . . . . 3 . . . Garrison 1 | . . . . 1 . . . Intercept . | . . . . . . . . Searches Triggered . | . . . . . . . . Construction Impeded 2 | . . . . 1 . . 1 Haulers Reinforced 4 | . . . . 2 . 2 . Active Scanning Responses . | . . . . . . . . Cargo Convoy Interrupts 2 | . . . . 1 . 1 . Stealth | -11 -10 -10 -9 -6 -6 -6 -6 --------- Run | Yrd Mat Sub Scr Fac Was Fac Ext Distress Signals 5 | . . . . 1 . 2 2 Communications Jammed . | . . . . . . . . Distress Signals . | . . . . . . . . Times Spotted 162 | . 11 12 . 73 6 49 11 Peak Tracking Total 19 | . 3 3 . 19 5 5 3 Tactical Retreats 18 | . . . . 4 3 11 . Traps | -11 -10 -10 -9 -6 -6 -6 -6 ------- Run | Yrd Mat Sub Scr Fac Was Fac Ext Traps Triggered 5 | . . 1 . 1 . 3 . Indirectly . | . . . . . . . . Trap Hack Attempts . | . . . . . . . . Triggered . | . . . . . . . . Disarmed . | . . . . . . . . Reprogrammed . | . . . . . . . . Reused . | . . . . . . . . Traps Extracted . | . . . . . . . . Installed . | . . . . . . . . Triggered . | . . . . . . . . Machines | -11 -10 -10 -9 -6 -6 -6 -6 ---------- Run | Yrd Mat Sub Scr Fac Was Fac Ext Machines Disabled 4 | . . 1 . 2 . 1 . Max in Single Turn 1 | . . 1 . 1 . 1 . Garrison Access 3 | . . . . 2 . 1 . Machines Repaired . | . . . . . . . . Machines Dismantled . | . . . . . . . . Machines Sabotaged . | . . . . . . . . Overloaded Fab Kills . | . . . . . . . . Hacking | -11 -10 -10 -9 -6 -6 -6 -6 --------- Run | Yrd Mat Sub Scr Fac Was Fac Ext Machines Accessed 40 | . 8 1 1 12 . 12 6 Terminals 21 | . 6 . . 4 . 5 6 Fabricators 2 | . . . . 1 . 1 . Repair Stations . | . . . . . . . . Recycling Units 11 | . 2 . . 5 . 4 . Scanalyzers 2 | . . . . 1 . 1 . Garrison Access 2 | . . . . 1 . 1 . Total Hacks 65 | . 12 1 3 21 . 17 11 Successful 30 | . 8 1 3 7 . 9 2 Failed 35 | . 4 . . 14 . 8 9 Catastrophic 10 | . . . . 3 . 3 4 Database Lockouts . | . . . . . . . . Manual 45 | . 13 . . 17 . 13 2 Terminals 34 | . 8 . . 7 . 8 11 Fabricators 3 | . . . . 2 . 1 . Repair Stations . | . . . . . . . . Recycling Units 18 | . 4 . . 9 . 5 . Scanalyzers 3 | . . . . 1 . 2 . Garrison Access 3 | . . . . 2 . 1 . Terminal Hacks 7 | . . 1 3 . . 1 2 Record 3 | . . . 3 . . . . Open Door 2 | . . . . . . . 2 Branch Access Points 1 | . . . . . . 1 . Proto ID Catalog 1 | . . 1 . . . . . Fabricator Hacks 1 | . . . . 1 . . . Network Status 1 | . . . . 1 . . . Repair Station Hacks . | . . . . . . . . Recycling Unit Hacks . | . . . . . . . . Scanalyzer 3 | . . . . 1 . 2 . Insert Component 2 | . . . . 1 . 1 . Retrieve Study 1 | . . . . . . 1 . Garrison Access Hacks 2 | . . . . 1 . 1 . Seal Access 2 | . . . . 1 . 1 . Unauthorized Hacks 16 | . 7 . . 4 . 5 . Terminals 7 | . 5 . . . . 2 . Botnet 2 | . . . . . . 2 . Skim 5 | . 5 . . . . . . Fabricators . | . . . . . . . . Repair Stations . | . . . . . . . . Recycling Units 9 | . 2 . . 4 . 3 . Tunnel 2 | . 2 . . . . . . Fedlink 7 | . . . . 4 . 3 . Scanalyzers . | . . . . . . . . Garrison Access . | . . . . . . . . Data Cores Recovered . | . . . . . . . . Used . | . . . . . . . . Hacking Detections 23 | . 2 . . 9 . 7 5 Full Trace Events 2 | . . . . 1 . . 1 Feedback Events . | . . . . . . . . Feedback Blocked . | . . . . . . . . Robot Schematics Acquired . | . . . . . . . . Robots Built . | . . . . . . . . Authchips . | . . . . . . . . Time . | . . . . . . . . Total Robot Build Rating . | . . . . . . . . Part Schematics Acquired . | . . . . . . . . Parts Built . | . . . . . . . . Authchips . | . . . . . . . . Time . | . . . . . . . . Total Part Build Rating . | . . . . . . . . Part Studies Acquired 1 | . . . . . . 1 . Parts Repaired . | . . . . . . . . Time . | . . . . . . . . Parts Recycled . | . . . . . . . . Recycled Matter . | . . . . . . . . Retrieved Matter . | . . . . . . . . Retrieved Components . | . . . . . . . . Parts Scanalyzed . | . . . . . . . . Part Schematics Acquired . | . . . . . . . . Parts Damaged . | . . . . . . . . Bothacking | -11 -10 -10 -9 -6 -6 -6 -6 ------------ Run | Yrd Mat Sub Scr Fac Was Fac Ext Used RIF Installer . | . . . . . . . . Robots Hacked . | . . . . . . . . Non-combat . | . . . . . . . . Combat . | . . . . . . . . Robot Hacks Applied . | . . . . . . . . Relay Couplers Released . | . . . . . . . . Fabnet Peak Effective % . | . . . . . . . . Robots Rewired 10 | . . . . 1 . . 9 Allies Hacked . | . . . . . . . . Hacks Repelled . | . . . . . . . . Allies | -11 -10 -10 -9 -6 -6 -6 -6 -------- Run | Yrd Mat Sub Scr Fac Was Fac Ext Total Allies 19 | . . . . 6 1 . 12 Largest Group 10 | . . . . 5 1 . 10 Highest-Rated Group 306 | . . . . 240 31 . 306 Highest-Rated Ally 52 | . . . . 52 31 . 39 Initial UFD Resources 48 | . . . . 24 42 42 48 Total Orders 10 | . . . . 10 . . . EXPLORE 6 | . . . . 6 . . . RETURN 4 | . . . . 4 . . . Ally Attacks 166 | . . . . 70 14 . 82 Total Damage 3444 | . . . . 1645 212 . 1587 Kills 26 | . . . . 16 . . 10 Allies Corrupted . | . . . . . . . . Allies Melted 1 | . . . . 1 . . . Intel | -11 -10 -10 -9 -6 -6 -6 -6 ------- Run | Yrd Mat Sub Scr Fac Was Fac Ext Active Infowar (turns) 11511 | 65 1762 2581 2504 1751 95 2236 517 Optics 2713 | . . . . . . 2196 517 Sensors 860 | . . . . . . 463 397 Terrain 243 | . . . . 243 . . . Seismic 8986 | 65 1762 2581 2504 1717 95 262 . Jamming 13 | . . . . . . 13 . Robot Analysis Total . | . . . . . . . . Derelict Logs Recovered 6 | . . 2 4 . . . . Drone Launches 8 | . . . . 8 . . . Drone Recoveries 6 | . . . . 6 . . . Exploration | -11 -10 -10 -9 -6 -6 -6 -6 ------------- Run | Yrd Mat Sub Scr Fac Was Fac Ext Turns Passed 12754 | 152 1780 2813 3068 2064 124 2236 517 Spaces Moved 8005 | 82 786 1694 2474 1192 83 1392 302 Core 111 | 42 . . 69 . . . . Treads 3114 | 40 786 1421 867 . . . . Legs 2969 | . . . . 1192 83 1392 302 Wheels 1161 | . . 273 888 . . . . Hover . | . . . . . . . . Flight 650 | . . . 650 . . . . Fastest Speed 34 | 50 160 115 34 100 120 105 114 Average Speed 126 | 103 160 153 113 109 120 115 114 Slowest Speed 240 | 160 160 240 160 120 120 120 114 Overloaded Moves . | . . . . . . . . Propulsion Burnouts . | . . . . . . . . Robots Hopped . | . . . . . . . . Potential Cave-ins 4 | . . . . . 4 . . Cave-ins Triggered . | . . . . . . . . Exploration Rate (%) 56 | 3 98 73 86 33 88 38 34 Regions Visited 7 Branch Regions 3 Pre-discovered Areas 8 | . 5 1 1 1 . . . Known Exits Taken 1 | . . . . . . 1 . Unknown Exits Taken 4 | 1 1 1 1 . . . . Scrap Searched 16 | . . 12 4 . . . . Spaces Dug 60 | . 3 . . 22 8 26 1 Terrain Destroyed 135 | . 3 61 . 36 8 26 1 Melee 54 | . . . . 19 8 26 1 Projectile 20 | . 3 . . 17 . . . AOE 61 | . . 61 . . . . . Terrain Rammed . | . . . . . . . . Walls Destroyed . | . . . . . . . . Machines Disabled . | . . . . . . . . Actions | -11 -10 -10 -9 -6 -6 -6 -6 --------- Run | Yrd Mat Sub Scr Fac Was Fac Ext Total 10033 | 128 1242 1831 2733 1763 93 1789 454 Wait 1125 | 8 391 43 172 305 . 151 55 Move 7999 | 81 785 1693 2473 1192 82 1391 302 Hop . | . . . . . . . . Pick Up 106 | 9 14 10 23 24 1 25 . Fast Attach 53 | 3 . . 20 13 1 16 . Attach 43 | 4 1 5 4 19 1 9 . Detach 3 | 1 . . . 1 . 1 . Swap 103 | . 10 26 2 31 . 24 10 Drop 105 | 1 5 8 39 25 . 26 1 Fire 207 | 21 29 46 . 111 . . . Melee 203 | . . . . 37 8 146 12 Ram . | . . . . . . . . Kick . | . . . . . . . . Crush 7 | . 7 . . . . . . Escape Stasis . | . . . . . . . . Rewire 79 | . . . . 5 . . 74 Trap . | . . . . . . . . Miscellaneous . | . . . . . . . . Route ------- -11/Scrapyard -10/Materials (discovered 5 exits: *Mat x3 / *Min / *Sub) -10/Subcaves (discovered 4 exits: *Mat x2 / Rec / *Scr) -9/Scraptown (discovered 2 exits: *Fac x2) -6/Factory -6/Waste -6/Factory (discovered 4 exits: *Low x2 / *Ext x2) -6/Extension History --------- Turn | Location | Event 7 | -11/Scrapyard | Discovered new exit (range 15) 153 | -11/Scrapyard | Entered Materials 154 | -10/Materials | Met a group of wandering Federalists 218 | -10/Materials | Discovered new exit (range 16) 310 | -10/Materials | Build established: Mutant 337 | -10/Materials | Discovered new exit (range 9) 552 | -10/Materials | Discovered new exit (range 16) 1330 | -10/Materials | Discovered new exit (range 12) 1333 | -10/Materials | Learned 2 Mines zone layouts 1512 | -10/Materials | Identified exit to Materials 1512 | -10/Materials | Identified exit to Mines 1550 | -10/Materials | Learned location of Recycling (-9) 1599 | -10/Materials | Loaded intel: 2 recycling unit locations 1660 | -10/Materials | Learned location of Mines (-9) 1732 | -10/Materials | Learned Storage trap positions 1924 | -10/Materials | Discovered new exit (range 7) 1933 | -10/Materials | Entered Subcaves 1934 | -10/Subcaves | Continued accompanying wandering Federalists (5) 1934 | -10/Subcaves | Identified exit to Recycling 1964 | -10/Subcaves | A swath of the cavern ceiling suddenly collapsed 2228 | -10/Subcaves | Wandering Federalist uncovered a shortcut to Scraptown 2347 | -10/Subcaves | Disturbed a concealed Subdweller 2735 | -10/Subcaves | Disturbed a concealed Subdweller 2858 | -10/Subcaves | Discovered new exit (range 9) 3144 | -10/Subcaves | Core integrity fell below 50% 3206 | -10/Subcaves | Core integrity fell below 20% 3243 | -10/Subcaves | Disturbed a concealed Subdweller 3527 | -10/Subcaves | Build established: Scavenger-Mutant 4189 | -10/Subcaves | Visited 4L-MR0's lab 4210 | -10/Subcaves | Found Rainbow Chip 4310 | -10/Subcaves | Identified exit to Materials 4356 | -10/Subcaves | Shifting Twisted Machinery released Riot Gun 4746 | -10/Subcaves | Entered Scraptown 4972 | -9/Scraptown | Scanned Subdweller tech in exchange for log data 4975 | -9/Scraptown | Learned Research interactive machine intel 4977 | -9/Scraptown | Learned 8 Research zone layouts 4978 | -9/Scraptown | Learned location of Warlord (-4) 4980 | -9/Scraptown | Learned Factory trap positions 5113 | -9/Scraptown | Visited Assassins FH 5127 | -9/Scraptown | Visited Comm Corps 5137 | -9/Scraptown | Visited Red Mages 5281 | -9/Scraptown | Heard Great Nut preacher, LISTEN AND RECITE! 5543 | -9/Scraptown | Visited Fellowship of the Rings 5570 | -9/Scraptown | Visited UFD Registry 5574 | -9/Scraptown | Registered with UFD as "Pipeguard" 5610 | -9/Scraptown | Visited Observation Area 5636 | -9/Scraptown | Visited Curators Association 5686 | -9/Scraptown | Visited Scrapoid Pod Storage 5706 | -9/Scraptown | Visited Junk Repository 5756 | -9/Scraptown | Visited Research Penetration Think Tank 5796 | -9/Scraptown | Visited DA-N13 Charitable Foundation 5810 | -9/Scraptown | Found DCF Scrap (31 items) 5834 | -9/Scraptown | Visited Abandonware Association 5850 | -9/Scraptown | Learned abandonware demo "REVENGE.EXE" 5937 | -9/Scraptown | Visited Modified Component R&D 6497 | -9/Scraptown | Visited A0-MCA Data Center 6500 | -9/Scraptown | Given an A+ rating by A0-MCA 6508 | -9/Scraptown | Released all parts (7) 6508 | -9/Scraptown | Found A0-MCA's Component Scanner 6781 | -9/Scraptown | Found Scrapoid Pod 6805 | -9/Scraptown | Build established: Mutant 7210 | -9/Scraptown | Discovered new exit (range 13) 7478 | -9/Scraptown | Found Scrap Suit 7507 | -9/Scraptown | Discovered new exit (range 3) 7745 | -9/Scraptown | Met Optimus 7745 | -9/Scraptown | Accepted into 0bPrime 7814 | -9/Scraptown | Entered Factory 7814 | -6/Factory | Evolved 8 slots: Propulsion x3, Utility x5 7815 | -6/Factory | Loaded intel: 99 trap records 7900 | -6/Factory | Loaded intel: 8 recycling unit locations 8109 | -6/Factory | Build established: Scrapper 8123 | -6/Factory | Attached Rainbow Chip, gained temporary slots: Power, Propulsion, Utility, Weapon 8299 | -6/Factory | Learned location of Protoforge (-3) 8560 | -6/Factory | Scrapoid Pod released 06F05-D (x5) 8577 | -6/Factory | Attached CPS modules to 06F02-D 8582 | -6/Factory | Attached CPS modules to 06F01-D 8585 | -6/Factory | Attached CPS modules to 06F04-D 8681 | -6/Factory | Garrison activated, responded to threat 8741 | -6/Factory | Lost 5 allies 8855 | -6/Factory | Build established: Scavenger-Scrapper 9285 | -6/Factory | Discovered new exit (range 15) 9434 | -6/Factory | Build established: Scavenger-Mutant 9564 | -6/Factory | First assault squad dispatched 9837 | -6/Factory | Cargo convoy interrupted 9878 | -6/Factory | Manually triggered Chute Trap 9878 | -6/Factory | Sucked down chute 9878 | -6/Factory | Entered Waste 9879 | -6/Waste | Met a frightened Derelict 9882 | -6/Waste | Found Broken Gamma Bomb Array 9887 | -6/Waste | Spotted C-40 Crusher 9889 | -6/Waste | Spotted C-40 Crusher 9893 | -6/Waste | EMP discharged 9902 | -6/Waste | Lost 3 parts (2n1u) 9915 | -6/Waste | Spotted C-40 Crusher 9925 | -6/Waste | Spotted C-40 Crusher 9926 | -6/Waste | Spotted C-40 Crusher 9978 | -6/Waste | Spotted C-40 Crusher 9992 | -6/Waste | Discovered new exit (range 10) 9993 | -6/Waste | EMP discharged 9993 | -6/Waste | System corruption reached 10% 10002 | -6/Waste | Entered Factory 10140 | -6/Factory | Build established: Gladiator 10422 | -6/Factory | Identified exit to Lower Caves 10422 | -6/Factory | Identified exit to Extension 10782 | -6/Factory | Loaded intel: 8 recycling unit locations 10859 | -6/Factory | Spotted B-75 Beast 11013 | -6/Factory | Core integrity fell below 50% 11144 | -6/Factory | Lost 6 parts (2p3n1u) 11394 | -6/Factory | Lost 3 parts (2n1u) 11466 | -6/Factory | Cargo convoy interrupted 11529 | -6/Factory | Core integrity fell below 20% 11834 | -6/Factory | Build established: Scavenger-Gladiator 12238 | -6/Factory | Entered Extension 12275 | -6/Extension | Rescued a captive Derelict 12628 | -6/Extension | Rescued a captive Derelict 12629 | -6/Extension | Rescued a captive Derelict 12660 | -6/Extension | Spotted B-75 Beast 12755 | -6/Extension | Destroyed by B-75 Beast with Heavy Machine Gun Last Messages --------------- 12723_ Slug penetrates 9A-A5W(h). 12724_ H-66 Slayer knocked back. 12726_ HV Slug penetrates H-66 Slayer. 12726_ H-66 Slayer suffers critical hit (Destroy). 12726_ Destroyed Lgt. Fission Core. 12726_ Slug penetrates Wall. 12730_ HV Slug penetrates Machine. 12732_ Slug penetrates 9A-A5W(h). 12732_ S7-9R2(b) destroyed. 12732_ 9A-A5W(h) destroyed. 12736_ System corrupted: Heat flow error (+189). 12738_ 0G-G6C(b) destroyed. 12746_ W2-ADP(g) destroyed. 12752_ QJ-ZCR(g) suffers critical hit (Blast). 12753_ System corrupted: Heat flow error (+171). 12754_ Acquired 29 matter. 12754_ R-10 Processor collects Lgt. Deuterium Engine. 12755_ QJ-ZCR(g) destroyed. Map ----- +----------------------------------------------------+ | #?#####??????????????????????????????????????? | | ### ###############????????????????????????? | | [=% "?????????????????????????? | | ### #########= #?????????????????????????? | | #?## ##???????# #?????????????????????????? | | ####??# #????????# #?????????????????????????? | | T#??### ########## #?????????????????????????? | | "##??# # # ####??????????????????????? | | ?????# # % + #??????????????????????? | | ?????# +[ [ # ##### #??????????????????????? | | ?????# # [[[ # #???# #??????????????????????? | | ?????# # # #???# #??????????????????????? | | ?????####### % # #???# #??????????????????????? | | ???????????######## #???# #?????????w????????????? | | ??????????????????# #???# #??????????????????????? | | ??????????????????# #???# #??????????????????????? | | ??????????????????# #???# #??????????????????????? | | ??????????????????# #???# #??????????????????????? | | ????????????????### ##??# #??????????????????????? | | ????????????????#T #??# #??????????????????????? | | ????????????????## ##??# #??????????????????????? | | ?????????????????# #???#l#??????????????????????? | | ?????????????????####???#g#?????????????b????????? | | ????????????????????????#h#?????????????l????????? | | ????????????????????????#g#??????????????????????? | | ????????????????????????#@#??????????????????????? | | ???????????????????????#%%#??????????????????????? | | ???????????????????????#BB#??????????????????????? | | ???????????????????????;BB#??????????????????????? | | ??????????????????????!*!%"??????????????????????? | | ?????????????????????#;%"%"??????????????????????? | | ?????????????????????#;%% R??????????????????????? | | ?????????????????????## u??????????????????????? | | ??????????????????????# ??????????????????????? | | ????????????????h????? ??????????????????????? | | ?????????????????????? ?????????????????????? | | ?????????????????????? ?????????????????????? | | ????????????????????? ?????????????????????? | | ??????????????????A?R A kR????????????????????? | | ?????????????????????## ?????????????????????? | | ??????????????????????# ?????????????????????? | | ??????????????????????# ????????????????????? | | ??????????????????????# ?????????????????????? | | ??????????????????????# ?????????????????????? | | ???????????????????????#####?????????????????????? | | ?????????????????????????????????????????????????? | | ?????????????????????????????????????????????????? | | | | | | | +----------------------------------------------------+ Best States ------------- Heat Dissipation 113 Coolant Potential 65 Energy Generation 34 Energy Capacity 360 Matter Stores 300 Matter Capacity 300 Sight Range 22 Robot Scan Range 16 Terrain Scan Range 20 Terrain Scan Density 210 Jamming Range 12 Additional Mass Support 6 Base Temperature (-) 150 Armor Coverage 600 Weapon Shielding 90 Melee Speed Boost 20 Evasion (%) 63 Melee Accuracy 16 Target Analysis 5 Recoil Reduction 2 Item Schematics ----------------- None Robot Schematics ------------------ None Fabricated ------------ Nothing Repaired ---------- Nothing Studied --------- Flexi-carbon Leg | -6/Factory | Hacked Alien Tech Used ----------------- None Achievements -------------- None Challenges ------------ None Game ------ Seed ShadingBorgScanner Manual? 0 Play Time 01:31:26 Cumulative 875.8 hours Start 2026.09.23 @ 16:26:31 End 2026.09.23 @ 18:00:57 Sessions 1 Manual Loads 0 Difficulty Rogue Special Mode None Game No. 484 Rogue 484 Adventurer 0 Explorer 0 Win Type - Total 50 Types 22/5/8/2/1/2/6/2/1/1 Lore% 95 Gallery% 91 Achievement% 84 Wizard Run 0 Options --------- Layout 1 ASCII 0 Keyboard 0 Movement Numpad Keybinds 0 Fullscreen 2 Font 24/Smallcaps Map View 50x35 Zoom Use 0% Tactical HUD 1 Map Filters NONE Filters NONE Steam 1 RUN: 2764e7ee-3af7-4f40-9622-3c758c0d3979